Organisation Name,Department where exp. Incurred,Service Category Label,Supplier (Beneficiary),Purpose of Expenditure,Procurement (Merchant) Category,Purchase Date,Settlement Date,Transaction Number,Net Amount (�)
Stockport MBC,Corporate and Support Services,Central Support Costs,FASTHOSTS INTERNET,Information and Communications Technology,Information Communication Technology  ,30.12.2021,16.01.2022,GPC12210000001,19.19
Stockport MBC,Corporate and Support Services,Central Support Costs,FASTHOSTS INTERNET,Information and Communications Technology,Information Communication Technology  ,29.12.2021,16.01.2022,GPC12210000002,15.59
Stockport MBC,Corporate and Support Services,Central Support Costs,MIRO.COM,Information and Communications Technology,Information Communication Technology  ,24.12.2021,16.01.2022,GPC12210000003,200.65
Stockport MBC,Corporate and Support Services,Central Support Costs,GITHUB,Information and Communications Technology,Information Communication Technology  ,14.12.2021,16.01.2022,GPC12210000004,77.89
Stockport MBC,Corporate and Support Services,Central Support Costs,AUTH0.COM,Information and Communications Technology,Information Communication Technology  ,13.12.2021,16.01.2022,GPC12210000005,9.37
Stockport MBC,Corporate and Support Services,Central Support Costs,WWW.SPARKOL.COM,Information and Communications Technology,Information Communication Technology  ,13.12.2021,16.01.2022,GPC12210000006,76.80
Stockport MBC,Corporate and Support Services,Central Support Costs,FASTHOSTS INTERNET,Information and Communications Technology,Information Communication Technology  ,11.12.2021,16.01.2022,GPC12210000007,12.59
Stockport MBC,Corporate and Support Services,Central Support Costs,AWS EMEA,Information and Communications Technology,Information Communication Technology  ,10.12.2021,16.01.2022,GPC12210000008,10.09
Stockport MBC,Corporate and Support Services,Central Support Costs,WWW.CONTENTFUL.COM,Information and Communications Technology,Information Communication Technology  ,09.12.2021,16.01.2022,GPC12210000009,844.48
Stockport MBC,Corporate and Support Services,Central Support Costs,ATLASSIAN,Information and Communications Technology,Information Communication Technology  ,08.12.2021,16.01.2022,GPC12210000010,813.46
Stockport MBC,Corporate and Support Services,Central Support Costs,AWS EMEA,Information and Communications Technology,Information Communication Technology  ,03.12.2021,16.01.2022,GPC12210000011,"1,046.14"
Stockport MBC,Corporate and Support Services,Central Support Costs,AUTH0.COM,Information and Communications Technology,Information Communication Technology  ,05.12.2021,16.01.2022,GPC12210000012,155.89
Stockport MBC,Services to People,Adult Social Care,DELIVEROO,Catering Supplies,Catering Food & Beverages ,03.12.2021,16.01.2022,GPC12210000013,17.70
Stockport MBC,Services to People,Adult Social Care,DELIVEROO,Catering Supplies,Catering Food & Beverages ,03.12.2021,16.01.2022,GPC12210000014,40.44
Stockport MBC,Services to People,Adult Social Care,UBER    EATS,Catering Supplies,Catering Food & Beverages ,02.12.2021,16.01.2022,GPC12210000015,53.60
Stockport MBC,Services to People,Childrens & Educational Services,PATOSS LTD,Staff Training,Human Resources  ,13.12.2021,16.01.2022,GPC12210000016,53.00
Stockport MBC,Services to People,Childrens & Educational Services,AMAZON.CO.UK T825P7LS5,Furniture and Equipment,Furniture & Soft Furnishings  ,14.12.2021,16.01.2022,GPC12210000017,18.47
Stockport MBC,Services to People,Childrens & Educational Services,SAINSBURYS S/MKTS,Catering Supplies,Catering Food & Beverages ,02.12.2021,16.01.2022,GPC12210000018,11.15
Stockport MBC,Services to People,Childrens & Educational Services,WAITROSE LTD 312,Catering Supplies,Catering Food & Beverages ,01.12.2021,16.01.2022,GPC12210000019,56.85
Stockport MBC,Corporate and Support Services,Central Services to the public,TESCO STORES 3378,Furniture and Equipment,Environmental Services Technical Equipment ,21.12.2021,16.01.2022,GPC12210000020,100.00
Stockport MBC,Corporate and Support Services,Central Services to the public,PRICELESS DISCOUNTS LI,Expenses and Allowances,Catering  ,06.12.2021,16.01.2022,GPC12210000021,3.99
Stockport MBC,Corporate and Support Services,Central Services to the public,BREAD AND BUTTIES LTD,Expenses and Allowances,Catering  ,06.12.2021,16.01.2022,GPC12210000022,51.05
Stockport MBC,Corporate and Support Services,Central Services to the public,PRICELESS DISCOUNTS LI,Expenses and Allowances,Catering  ,06.12.2021,16.01.2022,GPC12210000023,1.00
Stockport MBC,Corporate and Support Services,Central Services to the public,BREAD AND BUTTIES LTD,Expenses and Allowances,Catering  ,03.12.2021,16.01.2022,GPC12210000024,50.34
Stockport MBC,Corporate and Support Services,Central Support Costs,FACEBK  SNULZAKLG2,Office Expenses,Facilities & Management Services  ,30.12.2021,16.01.2022,GPC12210000025,700.00
Stockport MBC,Corporate and Support Services,Central Support Costs,APPLE.COM/BILL,Information and Communications Technology,Information Communication Technology  ,26.12.2021,16.01.2022,GPC12210000026,5.83
Stockport MBC,Corporate and Support Services,Central Support Costs,FACEBK  J6DHL9XLG2,Office Expenses,Facilities & Management Services  ,22.12.2021,16.01.2022,GPC12210000027,700.00
Stockport MBC,Corporate and Support Services,Central Support Costs,LINKEDIN-644 4568786,Office Expenses,Facilities & Management Services  ,15.12.2021,16.01.2022,GPC12210000028,382.06
Stockport MBC,Corporate and Support Services,Central Support Costs,BACKS DELI,Catering Supplies,Catering Food & Beverages ,15.12.2021,16.01.2022,GPC12210000029,337.50
Stockport MBC,Corporate and Support Services,Central Support Costs,CUSTOM TWITTER FEEDS P,Office Expenses,Facilities & Management Services  ,02.12.2021,16.01.2022,GPC12210000030,38.10
Stockport MBC,Services to People,Childrens & Educational Services,ROOT OF IT/MENTORING S,Staff Training,Human Resources  ,21.12.2021,16.01.2022,GPC12210000031,480.00
Stockport MBC,Services to People,Childrens & Educational Services,CBA PARALLELS,Information and Communications Technology,Information Communication Technology  ,16.12.2021,16.01.2022,GPC12210000032,199.95
Stockport MBC,Services to People,Childrens & Educational Services,BATESON TRAILERS,Repairs and Maintenance,"Works - Construction, Repair & Maintenance  ",15.12.2021,16.01.2022,GPC12210000033,40.00
Stockport MBC,Services to People,Childrens & Educational Services,CROWN DECORATING CENTR,Repairs and Maintenance,"Works - Construction, Repair & Maintenance  ",11.12.2021,16.01.2022,GPC12210000034,33.17
Stockport MBC,Services to People,Childrens & Educational Services,AMZNMKTPLACE,Furniture and Equipment,Furniture & Soft Furnishings  ,10.12.2021,16.01.2022,GPC12210000035,37.47
Stockport MBC,Services to People,Childrens & Educational Services,ARGOS LTD,Furniture and Equipment,Furniture & Soft Furnishings  ,07.12.2021,16.01.2022,GPC12210000036,30.00
Stockport MBC,Services to People,Childrens & Educational Services,AMZNMKTPLACE,Office Expenses,Mail Services�  ,08.12.2021,16.01.2022,GPC12210000037,31.84
Stockport MBC,Services to People,Childrens & Educational Services,WWW.MTISHOWS.COM,Library Equipment,Education Library Books ,03.12.2021,16.01.2022,GPC12210000038,578.20
Stockport MBC,Services to Place,Cultural & Related Services,ALDI 86 773,Furniture and Equipment,Furniture & Soft Furnishings  ,15.12.2021,16.01.2022,GPC12210000039,26.86
Stockport MBC,Services to Place,Cultural & Related Services,AMZNMKTPLACE,Furniture and Equipment,Furniture & Soft Furnishings  ,16.12.2021,16.01.2022,GPC12210000040,14.98
Stockport MBC,Services to Place,Cultural & Related Services,AMAZON.CO.UK Y23F46GF5,Furniture and Equipment,Furniture & Soft Furnishings  ,06.12.2021,16.01.2022,GPC12210000041,21.99
Stockport MBC,Services to People,Childrens & Educational Services,GOOGLE  ADS8179771860,Office Expenses,Facilities & Management Services  ,03.12.2021,16.01.2022,GPC12210000042,14.18
Stockport MBC,Services to Place,Central Support Costs,STOCKPORT T/O,Travelling Expenses,Human Resources Travel & Subsistence ,02.12.2021,16.01.2022,GPC12210000043,4.90
Stockport MBC,Services to People,Childrens & Educational Services,AMAZON PRIME IG7QD8VQ5,Furniture and Equipment,Furniture & Soft Furnishings  ,13.12.2021,16.01.2022,GPC12210000044,7.99
Stockport MBC,Services to People,Childrens & Educational Services,STAGECOACH SERVICE,Care Payments,Social Community Care Supplies & Services  ,07.12.2021,16.01.2022,GPC12210000045,16.50
Stockport MBC,Services to People,Childrens & Educational Services,AMZNMKTPLACE,Office Expenses,Stationery    ,02.12.2021,16.01.2022,GPC12210000046,4.95
Stockport MBC,Services to People,Childrens & Educational Services,WM MORRISONS STORE,Catering Supplies,Catering Food & Beverages ,21.12.2021,16.01.2022,GPC12210000047,11.21
Stockport MBC,Services to People,Childrens & Educational Services,WM MORRISONS STORE,Catering Supplies,Catering Food & Beverages ,20.12.2021,16.01.2022,GPC12210000048,10.80
Stockport MBC,Services to People,Childrens & Educational Services,WM MORRISONS STORE,Office Expenses,Mail Services�  ,20.12.2021,16.01.2022,GPC12210000049,63.36
Stockport MBC,Services to People,Childrens & Educational Services,MCDONALDS76,Catering Supplies,Catering Food & Beverages ,16.12.2021,16.01.2022,GPC12210000050,30.73
Stockport MBC,Services to People,Childrens & Educational Services,THE LIGHT CINEMAS,Fees and Charges,Education  ,16.12.2021,16.01.2022,GPC12210000051,13.90
Stockport MBC,Services to People,Childrens & Educational Services,THE LIGHT CINEMAS,Fees and Charges,Education  ,16.12.2021,16.01.2022,GPC12210000052,5.95
Stockport MBC,Services to People,Childrens & Educational Services,THE LIGHT CINEMAS,Fees and Charges,Education  ,16.12.2021,16.01.2022,GPC12210000053,5.95
Stockport MBC,Services to People,Childrens & Educational Services,THE LIGHT CINEMAS,Fees and Charges,Education  ,16.12.2021,16.01.2022,GPC12210000054,11.00
Stockport MBC,Services to People,Childrens & Educational Services,THE LIGHT CINEMAS,Fees and Charges,Education  ,16.12.2021,16.01.2022,GPC12210000055,4.95
Stockport MBC,Services to People,Childrens & Educational Services,WM MORRISONS STORE,Fees and Charges,Education  ,15.12.2021,16.01.2022,GPC12210000056,35.39
Stockport MBC,Services to People,Childrens & Educational Services,CO-OP GROUP 070280,Catering Supplies,Catering Food & Beverages ,14.12.2021,16.01.2022,GPC12210000057,8.00
Stockport MBC,Services to People,Childrens & Educational Services,HOME BARGAINS,Furniture and Equipment,Environmental Services Technical Equipment ,14.12.2021,16.01.2022,GPC12210000058,3.38
Stockport MBC,Services to People,Childrens & Educational Services,WM MORRISONS STORE,Catering Supplies,Catering Food & Beverages ,13.12.2021,16.01.2022,GPC12210000059,6.70
Stockport MBC,Services to People,Childrens & Educational Services,HOBBYCRAFT,Furniture and Equipment,Environmental Services Technical Equipment ,14.12.2021,16.01.2022,GPC12210000060,7.25
Stockport MBC,Services to People,Childrens & Educational Services,WILKO RETAIL LIMITED,Furniture and Equipment,Environmental Services Technical Equipment ,14.12.2021,16.01.2022,GPC12210000061,1.85
Stockport MBC,Services to People,Childrens & Educational Services,WM MORRISONS STORE,Furniture and Equipment,Environmental Services Technical Equipment ,09.12.2021,16.01.2022,GPC12210000062,24.28
Stockport MBC,Services to People,Childrens & Educational Services,WM MORRISONS STORE,Catering Supplies,Catering Food & Beverages ,09.12.2021,16.01.2022,GPC12210000063,6.00
Stockport MBC,Services to People,Childrens & Educational Services,WM MORRISONS STORE,Furniture and Equipment,Environmental Services Technical Equipment ,09.12.2021,16.01.2022,GPC12210000064,19.58
Stockport MBC,Services to People,Childrens & Educational Services,WM MORRISONS STORE,Furniture and Equipment,Environmental Services Technical Equipment ,09.12.2021,16.01.2022,GPC12210000065,19.98
Stockport MBC,Services to People,Childrens & Educational Services,WM MORRISONS STORE,Catering Supplies,Catering Food & Beverages ,07.12.2021,16.01.2022,GPC12210000066,51.00
Stockport MBC,Services to People,Childrens & Educational Services,THE LIGHT CINEMAS,Catering Supplies,Catering Food & Beverages ,08.12.2021,16.01.2022,GPC12210000067,86.25
Stockport MBC,Services to People,Childrens & Educational Services,WM MORRISONS STORE,Catering Supplies,Catering Food & Beverages ,03.12.2021,16.01.2022,GPC12210000068,2.50
Stockport MBC,Services to People,Childrens & Educational Services,LIVERPOOL,Fees and Charges,Education  ,02.12.2021,16.01.2022,GPC12210000069,40.00
Stockport MBC,Corporate and Support Services,Corporate & Democratic Core,SP   EXECUTIVE RETAIL,Furniture and Equipment,Environmental Services Technical Equipment ,09.12.2021,16.01.2022,GPC12210000070,410.32
Stockport MBC,Services to People,Adult Social Care,ASDA GROCERIES ONLINE,Catering Supplies,Catering Food & Beverages ,21.12.2021,16.01.2022,GPC12210000071,94.89
Stockport MBC,Services to People,Adult Social Care,ASDA GROCERIES ONLINE,Catering Supplies,Catering Food & Beverages ,21.12.2021,16.01.2022,GPC12210000072,-1.00
Stockport MBC,Services to People,Adult Social Care,ASDA GROCERIES ONLINE,Catering Supplies,Catering Food & Beverages ,17.12.2021,16.01.2022,GPC12210000073,1.41
Stockport MBC,Services to People,Adult Social Care,ASDA GROCERIES ONLINE,Catering Supplies,Catering Food & Beverages ,17.12.2021,16.01.2022,GPC12210000074,122.52
Stockport MBC,Services to People,Adult Social Care,ASDA GROCERIES ONLINE,Catering Supplies,Catering Food & Beverages ,10.12.2021,16.01.2022,GPC12210000075,125.91
Stockport MBC,Services to People,Adult Social Care,ASDA GROCERIES ONLINE,Catering Supplies,Catering Food & Beverages ,10.12.2021,16.01.2022,GPC12210000076,0.42
Stockport MBC,Corporate and Support Services,Central Support Costs,AMAZON.CO.UK 1125D5QI5,Library Equipment,Education Library Books ,23.12.2021,16.01.2022,GPC12210000077,72.29
Stockport MBC,Corporate and Support Services,Corporate & Democratic Core,IPSUK  211222152022105,Library Equipment,Education Library Books ,17.12.2021,16.01.2022,GPC12210000078,47.96
Stockport MBC,Corporate and Support Services,Central Support Costs,PAYPAL  LAG,Library Equipment,Education Library Books ,13.12.2021,16.01.2022,GPC12210000079,198.50
Stockport MBC,Corporate and Support Services,Central Support Costs,PAYPAL  LAG,Library Equipment,Education Library Books ,13.12.2021,16.01.2022,GPC12210000080,-296.00
Stockport MBC,Corporate and Support Services,Central Services to the public,ROYAL MAIL ONLINE SHOP,Office Expenses,Mail Services�  ,13.12.2021,16.01.2022,GPC12210000081,125.80
Stockport MBC,Corporate and Support Services,Central Support Costs,AMZNMKTPLACE,Office Expenses,Stationery    ,11.12.2021,16.01.2022,GPC12210000082,47.97
Stockport MBC,Corporate and Support Services,Central Support Costs,PAYPAL  LAG,Library Equipment,Education Library Books ,09.12.2021,16.01.2022,GPC12210000083,296.00
Stockport MBC,Services to People,Public Health,W M MORRISONS.COM,Catering Supplies,Catering Food & Beverages ,25.12.2021,16.01.2022,GPC12210000084,47.34
Stockport MBC,Services to People,Public Health,DELIVEROO,Catering Supplies,Catering Food & Beverages ,20.12.2021,16.01.2022,GPC12210000085,34.28
Stockport MBC,Services to People,Public Health,W M MORRISONS.COM,Catering Supplies,Catering Food & Beverages ,11.12.2021,16.01.2022,GPC12210000086,75.62
Stockport MBC,Services to People,Public Health,JUST EAT,Catering Supplies,Catering Food & Beverages ,12.12.2021,16.01.2022,GPC12210000087,31.51
Stockport MBC,Services to People,Public Health,AMZNMKTPLACE,Care Payments,Social Community Care Supplies & Services  ,06.12.2021,16.01.2022,GPC12210000088,14.99
Stockport MBC,Services to People,Public Health,ASDA GROCERIES ONLINE,Catering Supplies,Catering Food & Beverages ,02.12.2021,16.01.2022,GPC12210000089,33.99
Stockport MBC,Services to People,Adult Social Care,ALDI 72 778,Catering Supplies,Catering Food & Beverages ,19.12.2021,16.01.2022,GPC12210000090,48.16
Stockport MBC,Services to People,Adult Social Care,EBAY COMMERCE UK LTD,Furniture and Equipment,Furniture & Soft Furnishings  ,09.12.2021,16.01.2022,GPC12210000091,-22.78
Stockport MBC,Services to People,Adult Social Care,EBAY COMMERCE UK LTD,Furniture and Equipment,Furniture & Soft Furnishings  ,05.12.2021,16.01.2022,GPC12210000092,4.99
Stockport MBC,Services to People,Adult Social Care,EBAY COMMERCE UK LTD,Furniture and Equipment,Furniture & Soft Furnishings  ,02.12.2021,16.01.2022,GPC12210000093,18.30
Stockport MBC,Corporate and Support Services,Cultural & Related Services,SAINSBURY'S S/MKT,Catering Supplies,Catering Food & Beverages ,01.12.2021,16.01.2022,GPC12210000094,2.80
Stockport MBC,Corporate and Support Services,Cultural & Related Services,SAINSBURY'S S/MKTS,Clothing Uniforns and Laundry,Clothing  ,01.12.2021,16.01.2022,GPC12210000095,3.60
Stockport MBC,Services to Place,Cultural & Related Services,IKEA LTD 186 MANCHESTE,Furniture and Equipment,Environmental Services Technical Equipment ,15.12.2021,16.01.2022,GPC12210000096,58.00
Stockport MBC,Services to Place,Cultural & Related Services,SCREWFIX DIRECT,Furniture and Equipment,Environmental Services Technical Equipment ,08.12.2021,16.01.2022,GPC12210000097,87.96
Stockport MBC,Services to Place,Cultural & Related Services,SUMUP   DELI DELIGHTS,Furniture and Equipment,Furniture & Soft Furnishings  ,07.12.2021,16.01.2022,GPC12210000098,45.00
Stockport MBC,Services to People,Childrens & Educational Services,MCDONALDS 1202,Catering Supplies,Catering Food & Beverages ,16.12.2021,16.01.2022,GPC12210000099,72.67
Stockport MBC,Services to People,Childrens & Educational Services,TENPIN LTD - 184,Fees and Charges,Education  ,15.12.2021,16.01.2022,GPC12210000100,15.24
Stockport MBC,Services to People,Childrens & Educational Services,W M MORRISON STORE,Catering Supplies,Catering Food & Beverages ,15.12.2021,16.01.2022,GPC12210000101,8.00
Stockport MBC,Services to People,Childrens & Educational Services,MCDONALDS 1202,Catering Supplies,Catering Food & Beverages ,15.12.2021,16.01.2022,GPC12210000102,33.49
Stockport MBC,Services to People,Public Health,ASDA GROCERIES ONLINE,Catering Supplies,Catering Food & Beverages ,07.12.2021,16.01.2022,GPC12210000103,-6.40
Stockport MBC,Services to People,Public Health,ASDA GROCERIES ONLINE,Catering Supplies,Catering Food & Beverages ,07.12.2021,16.01.2022,GPC12210000104,42.53
Stockport MBC,Services to People,Adult Social Care,ALDI 84 773,Catering Supplies,Catering Food & Beverages ,15.12.2021,16.01.2022,GPC12210000105,44.41
Stockport MBC,Services to People,Adult Social Care,ASDA GROCERIES ONLINE,Catering Supplies,Catering Food & Beverages ,03.12.2021,16.01.2022,GPC12210000106,84.16
Stockport MBC,Services to People,Adult Social Care,ASDA GROCERIES ONLINE,Catering Supplies,Catering Food & Beverages ,05.12.2021,16.01.2022,GPC12210000107,-2.00
Stockport MBC,Services to People,Childrens & Educational Services,AMAZON PRIME RS7OY23H5,Office Expenses,Stationery    ,18.12.2021,16.01.2022,GPC12210000108,7.99
Stockport MBC,Services to People,Childrens & Educational Services,AMAZON.CO.UK CA2VE1NU5,Office Expenses,Stationery    ,12.12.2021,16.01.2022,GPC12210000109,3.00
Stockport MBC,Services to People,Childrens & Educational Services,LEASOWE CASTLE HOTEL,Staff Training,Human Resources  ,09.12.2021,16.01.2022,GPC12210000110,304.00
Stockport MBC,Services to People,Childrens & Educational Services,JUNGLE GRILL,Catering Supplies,Catering Food & Beverages ,21.12.2021,16.01.2022,GPC12210000111,30.11
Stockport MBC,Services to People,Childrens & Educational Services,MCDONALDS 1202,Catering Supplies,Catering Food & Beverages ,14.12.2021,16.01.2022,GPC12210000112,11.33
Stockport MBC,Services to People,Childrens & Educational Services,AMZNMKTPLACE,Furniture and Equipment,Environmental Services Technical Equipment ,15.12.2021,16.01.2022,GPC12210000113,6.25
Stockport MBC,Services to People,Childrens & Educational Services,MCDONALDS 1202,Catering Supplies,Catering Food & Beverages ,09.12.2021,16.01.2022,GPC12210000114,11.86
Stockport MBC,Services to People,Childrens & Educational Services,MCDONALDS 1202,Catering Supplies,Catering Food & Beverages ,07.12.2021,16.01.2022,GPC12210000115,14.77
Stockport MBC,Services to People,Childrens & Educational Services,AMAZON.CO.UK ZQ1KP9425,Furniture and Equipment,Environmental Services Technical Equipment ,07.12.2021,16.01.2022,GPC12210000116,98.73
Stockport MBC,Services to People,Childrens & Educational Services,MCDONALDS 1202,Catering Supplies,Catering Food & Beverages ,02.12.2021,16.01.2022,GPC12210000117,9.29
Stockport MBC,Services to People,Adult Social Care,ASDA GROCERIES ONLINE,Catering Supplies,Catering Food & Beverages ,30.12.2021,16.01.2022,GPC12210000118,-12.87
Stockport MBC,Services to People,Adult Social Care,ASDA GROCERIES ONLINE,Catering Supplies,Catering Food & Beverages ,30.12.2021,16.01.2022,GPC12210000119,72.60
Stockport MBC,Services to People,Adult Social Care,ASDA GROCERIES ONLINE,Catering Supplies,Catering Food & Beverages ,30.12.2021,16.01.2022,GPC12210000120,77.57
Stockport MBC,Services to People,Adult Social Care,ASDA GROCERIES ONLINE,Catering Supplies,Catering Food & Beverages ,16.12.2021,16.01.2022,GPC12210000121,20.04
Stockport MBC,Services to People,Adult Social Care,BRITISH GAS ONLINE,Catering Supplies,Catering Food & Beverages ,15.12.2021,16.01.2022,GPC12210000122,15.00
Stockport MBC,Services to People,Adult Social Care,BRITISH GAS ONLINE,Catering Supplies,Catering Food & Beverages ,15.12.2021,16.01.2022,GPC12210000123,15.00
Stockport MBC,Services to People,Adult Social Care,ASDA GROCERIES ONLINE,Catering Supplies,Catering Food & Beverages ,16.12.2021,16.01.2022,GPC12210000124,81.05
Stockport MBC,Services to People,Adult Social Care,DELIVEROO,Catering Supplies,Catering Food & Beverages ,16.12.2021,16.01.2022,GPC12210000125,6.18
Stockport MBC,Services to People,Adult Social Care,ASDA GROCERIES ONLINE,Catering Supplies,Catering Food & Beverages ,15.12.2021,16.01.2022,GPC12210000126,81.42
Stockport MBC,Services to People,Adult Social Care,ASDA GROCERIES ONLINE,Catering Supplies,Catering Food & Beverages ,09.12.2021,16.01.2022,GPC12210000127,40.76
Stockport MBC,Services to People,Adult Social Care,DELIVEROO,Catering Supplies,Catering Food & Beverages ,06.12.2021,16.01.2022,GPC12210000128,7.38
Stockport MBC,Services to People,Childrens & Educational Services,ASDA STORES 4840,Furniture and Equipment,Furniture & Soft Furnishings  ,21.12.2021,16.01.2022,GPC12210000129,7.50
Stockport MBC,Services to People,Childrens & Educational Services,ROOT OF IT/MENTORING S,Staff Training,Human Resources  ,21.12.2021,16.01.2022,GPC12210000130,480.00
Stockport MBC,Services to People,Childrens & Educational Services,ASDA STORES 4840,Catering Supplies,Catering Food & Beverages ,17.12.2021,16.01.2022,GPC12210000131,3.50
Stockport MBC,Services to People,Childrens & Educational Services,TESCO STORES 3378,Catering Supplies,Catering Food & Beverages ,14.12.2021,16.01.2022,GPC12210000132,42.44
Stockport MBC,Services to People,Childrens & Educational Services,CITY LOCK AND SAFE,Repairs and Maintenance,"Works - Construction, Repair & Maintenance  ",10.12.2021,16.01.2022,GPC12210000133,12.95
Stockport MBC,Services to People,Childrens & Educational Services,TESCO STORES 3378,Furniture and Equipment,Furniture & Soft Furnishings  ,09.12.2021,16.01.2022,GPC12210000134,6.00
Stockport MBC,Services to People,Childrens & Educational Services,ASDA STORES 4840,Furniture and Equipment,Furniture & Soft Furnishings  ,08.12.2021,16.01.2022,GPC12210000135,1.90
Stockport MBC,Services to People,Childrens & Educational Services,ASDA STORES 4840,Library Equipment,Education Library Books ,06.12.2021,16.01.2022,GPC12210000136,6.59
Stockport MBC,Services to People,Adult Social Care,B&M 696 - BARONS SQUAR,Furniture and Equipment,Furniture & Soft Furnishings  ,15.12.2021,16.01.2022,GPC12210000137,12.50
Stockport MBC,Services to People,Adult Social Care,THE RANGE,Furniture and Equipment,Furniture & Soft Furnishings  ,08.12.2021,16.01.2022,GPC12210000138,250.85
Stockport MBC,Services to People,Adult Social Care,WILKO RETAIL LIMITED,Furniture and Equipment,Furniture & Soft Furnishings  ,08.12.2021,16.01.2022,GPC12210000139,24.92
Stockport MBC,Services to People,Adult Social Care,ASDA STORE,Clothing Uniforns and Laundry,Furniture & Soft Furnishings  ,06.12.2021,16.01.2022,GPC12210000140,61.46
Stockport MBC,Services to People,Childrens & Educational Services,TESCO STORES 3378,Catering Supplies,Catering Food & Beverages ,20.12.2021,16.01.2022,GPC12210000141,52.27
Stockport MBC,Services to People,Childrens & Educational Services,ASDA STORES 4840,Catering Supplies,Catering Food & Beverages ,09.12.2021,16.01.2022,GPC12210000142,64.88
Stockport MBC,Services to People,Childrens & Educational Services,KNITTERS,Furniture and Equipment,Furniture & Soft Furnishings  ,09.12.2021,16.01.2022,GPC12210000143,4.30
Stockport MBC,Services to People,Childrens & Educational Services,TESCO STORES 3378,Catering Supplies,Catering Food & Beverages ,07.12.2021,16.01.2022,GPC12210000144,100.40
Stockport MBC,Services to People,Childrens & Educational Services,ACTIVE TAMESIDE,Catering Supplies,Catering Food & Beverages ,07.12.2021,16.01.2022,GPC12210000145,5.70
Stockport MBC,Services to People,Childrens & Educational Services,ACTIVE TAMESIDE,Fees and Charges,Education  ,07.12.2021,16.01.2022,GPC12210000146,1.00
Stockport MBC,Services to People,Childrens & Educational Services,ARGOS LTD,Furniture and Equipment,Environmental Services Technical Equipment ,22.12.2021,16.01.2022,GPC12210000147,221.95
Stockport MBC,Services to People,Childrens & Educational Services,ARGOS LTD,Furniture and Equipment,Environmental Services Technical Equipment ,22.12.2021,16.01.2022,GPC12210000148,49.00
Stockport MBC,Services to People,Childrens & Educational Services,CARTRIDGESHOP.CO.UK,Office Expenses,Stationery    ,21.12.2021,16.01.2022,GPC12210000149,104.89
Stockport MBC,Services to People,Childrens & Educational Services,CARTRIDGESHOP.CO.UK,Office Expenses,Stationery    ,21.12.2021,16.01.2022,GPC12210000150,104.89
Stockport MBC,Services to People,Childrens & Educational Services,TRAINLINE.COM,Travelling Expenses,Human Resources Travel & Subsistence ,14.12.2021,16.01.2022,GPC12210000151,109.64
Stockport MBC,Services to People,Childrens & Educational Services,THETRAINLINE.COM,Travelling Expenses,Human Resources Travel & Subsistence ,10.12.2021,16.01.2022,GPC12210000152,98.44
Stockport MBC,Services to People,Childrens & Educational Services,THE HINDS HEAD,Expenses and Allowances,Catering  ,03.12.2021,16.01.2022,GPC12210000153,60.00
Stockport MBC,Services to People,Childrens & Educational Services,1 AND 1 IONOS LTD,Information and Communications Technology,Information Communication Technology  ,27.12.2021,16.01.2022,GPC12210000154,12.00
Stockport MBC,Services to People,Childrens & Educational Services,GOVERNMENT EVENTS,Staff Training,Human Resources  ,16.12.2021,16.01.2022,GPC12210000155,897.00
Stockport MBC,Services to People,Childrens & Educational Services,ZOOM.US 888-799-9666,Information and Communications Technology,Information Communication Technology  ,11.12.2021,16.01.2022,GPC12210000156,11.99
Stockport MBC,Services to People,Childrens & Educational Services,WWW.MARKALLENGROUP.COM,Staff Training,Human Resources  ,10.12.2021,16.01.2022,GPC12210000157,198.00
Stockport MBC,Services to People,Childrens & Educational Services,ARGOS LTD,Care Payments,Social Community Care Supplies & Services  ,06.12.2021,16.01.2022,GPC12210000158,53.94
Stockport MBC,Services to People,Childrens & Educational Services,AUTISM A HANDS ON,Professional Fees,Consultancy   ,06.12.2021,16.01.2022,GPC12210000159,20.00
Stockport MBC,Services to People,Childrens & Educational Services,GBP RIFFS MUSIC ACADE,Care Payments,Social Community Care Supplies & Services  ,03.12.2021,16.01.2022,GPC12210000160,82.00
Stockport MBC,Services to People,Childrens & Educational Services,AUTISM A HANDS ON,Professional Fees,Consultancy   ,03.12.2021,16.01.2022,GPC12210000161,20.00
Stockport MBC,Services to People,Childrens & Educational Services,PREMIER INN44521425,Care Payments,Social Community Care Supplies & Services  ,02.12.2021,16.01.2022,GPC12210000162,185.50
Stockport MBC,Services to People,Childrens & Educational Services,STOCKPORT MBC DOM,Care Payments,Social Community Care Supplies & Services  ,03.12.2021,16.01.2022,GPC12210000163,449.10
Stockport MBC,Services to People,Childrens & Educational Services,DECATHLON UK LIMITED,Furniture and Equipment,Environmental Services Technical Equipment ,03.12.2021,16.01.2022,GPC12210000164,406.50
Stockport MBC,Services to People,Childrens & Educational Services,AMZNMKTPLACE,Furniture and Equipment,Environmental Services Technical Equipment ,07.12.2021,16.01.2022,GPC12210000165,149.79
Stockport MBC,Services to People,Childrens & Educational Services,HOLIDAY INNS,Care Payments,Social Community Care Supplies & Services  ,21.12.2021,16.01.2022,GPC12210000166,569.00
Stockport MBC,Services to People,Childrens & Educational Services,HOLIDAY INNS,Care Payments,Social Community Care Supplies & Services  ,07.12.2021,16.01.2022,GPC12210000167,910.00
Stockport MBC,Services to People,Childrens & Educational Services,HIE MANCHESTER EAST,Care Payments,Social Community Care Supplies & Services  ,08.12.2021,16.01.2022,GPC12210000168,66.99
Stockport MBC,Services to People,Childrens & Educational Services,HOLIDAY INNS,Care Payments,Social Community Care Supplies & Services  ,06.12.2021,16.01.2022,GPC12210000169,666.00
Stockport MBC,Services to People,Childrens & Educational Services,HOLIDAY INNS,Care Payments,Social Community Care Supplies & Services  ,01.12.2021,16.01.2022,GPC12210000170,750.00
Stockport MBC,Services to People,Childrens & Educational Services,ASDA GROCERIES ONLINE,Catering Supplies,Catering Food & Beverages ,29.12.2021,16.01.2022,GPC12210000171,6.00
Stockport MBC,Services to People,Childrens & Educational Services,WILKO RETAIL LIMITED,Furniture and Equipment,Environmental Services Technical Equipment ,23.12.2021,16.01.2022,GPC12210000172,16.25
Stockport MBC,Services to People,Childrens & Educational Services,HOME BARGAINS,Furniture and Equipment,Environmental Services Technical Equipment ,23.12.2021,16.01.2022,GPC12210000173,7.51
Stockport MBC,Services to People,Childrens & Educational Services,TESCO STORES 3378,Furniture and Equipment,Environmental Services Technical Equipment ,21.12.2021,16.01.2022,GPC12210000174,25.38
Stockport MBC,Services to People,Childrens & Educational Services,WM MORRISONS STORE,Furniture and Equipment,Environmental Services Technical Equipment ,14.12.2021,16.01.2022,GPC12210000175,3.45
Stockport MBC,Services to People,Childrens & Educational Services,WM MORRISONS STORE,Catering Supplies,Catering Food & Beverages ,13.12.2021,16.01.2022,GPC12210000176,15.61
Stockport MBC,Services to People,Childrens & Educational Services,ASDA GROCERIES ONLINE,Catering Supplies,Catering Food & Beverages ,06.12.2021,16.01.2022,GPC12210000177,48.62
Stockport MBC,Services to People,Childrens & Educational Services,ASDA GROCERIES ONLINE,Catering Supplies,Catering Food & Beverages ,06.12.2021,16.01.2022,GPC12210000178,-0.89
Stockport MBC,Services to People,Childrens & Educational Services,ASDA GROCERIES ONLINE,Catering Supplies,Catering Food & Beverages ,02.12.2021,16.01.2022,GPC12210000179,-0.72
Stockport MBC,Services to People,Childrens & Educational Services,TESCO STORES 3378,Catering Supplies,Catering Food & Beverages ,22.12.2021,16.01.2022,GPC12210000180,333.00
Stockport MBC,Services to People,Childrens & Educational Services,NETFLIX.COM,Fees and Charges,Financial Services  ,10.12.2021,16.01.2022,GPC12210000181,13.99
Stockport MBC,Services to People,Childrens & Educational Services,SURVEYMONKEY,Fees and Charges,Financial Services  ,07.12.2021,16.01.2022,GPC12210000182,384.00
Stockport MBC,Services to People,Childrens & Educational Services,DISNEY PLUS,Fees and Charges,Financial Services  ,03.12.2021,16.01.2022,GPC12210000183,7.99
Stockport MBC,Services to People,Childrens & Educational Services,KAPLAN FINANCIAL LTD,Fees and Charges,Human Resources Training & Conferences ,16.12.2021,16.01.2022,GPC12210000184,193.00
Stockport MBC,Services to People,Childrens & Educational Services,AMZNMKTPLACE,Furniture and Equipment,Environmental Services Technical Equipment ,17.12.2021,16.01.2022,GPC12210000185,51.10
Stockport MBC,Services to People,Childrens & Educational Services,AMZNMKTPLACE AMAZON.CO,Furniture and Equipment,Environmental Services Technical Equipment ,16.12.2021,16.01.2022,GPC12210000186,54.09
Stockport MBC,Services to People,Childrens & Educational Services,B&M 261 - STOCKPORT,Furniture and Equipment,Environmental Services Technical Equipment ,09.12.2021,16.01.2022,GPC12210000187,4.49
Stockport MBC,Services to People,Childrens & Educational Services,HOME BARGAINS,Furniture and Equipment,Environmental Services Technical Equipment ,09.12.2021,16.01.2022,GPC12210000188,18.26
Stockport MBC,Services to People,Childrens & Educational Services,AMZNMKTPLACE,Furniture and Equipment,Environmental Services Technical Equipment ,08.12.2021,16.01.2022,GPC12210000189,59.98
Stockport MBC,Services to People,Childrens & Educational Services,AMZNMKTPLACE AMAZON.CO,Furniture and Equipment,Environmental Services Technical Equipment ,08.12.2021,16.01.2022,GPC12210000190,89.97
Stockport MBC,Services to People,Childrens & Educational Services,AMAZON PRIME 7N07F2545,Furniture and Equipment,Environmental Services Technical Equipment ,06.12.2021,16.01.2022,GPC12210000191,7.99
Stockport MBC,Services to People,Childrens & Educational Services,AMZNMKTPLACE,Furniture and Equipment,Environmental Services Technical Equipment ,03.12.2021,16.01.2022,GPC12210000192,17.82
Stockport MBC,Services to People,Public Health,SAFETY FIRST,Furniture and Equipment,Environmental Services Technical Equipment ,09.12.2021,16.01.2022,GPC12210000193,"1,941.30"
Stockport MBC,Services to People,Adult Social Care,AMZNMKTPLACE AMAZON.CO,Catering Supplies,Catering  ,08.12.2021,16.01.2022,GPC12210000194,18.22
Stockport MBC,Services to People,Adult Social Care,AMZNMKTPLACE,Catering Supplies,Catering  ,08.12.2021,16.01.2022,GPC12210000195,163.33
Stockport MBC,Services to People,Adult Social Care,IKEA LTD SHOP ONLINE,Catering Supplies,Catering  ,08.12.2021,16.01.2022,GPC12210000196,43.34
Stockport MBC,Corporate and Support Services,Cultural & Related Services,ZOOM.US 888-799-9666,Publicity and Promotion,Arts & Leisure Services  ,08.12.2021,16.01.2022,GPC12210000197,143.88
Stockport MBC,Services to People,Public Health,ASDA SUPERSTORE,Office Expenses,Stationery    ,20.12.2021,16.01.2022,GPC12210000198,15.13
Stockport MBC,Services to People,Adult Social Care,ALDI 84 773,Catering Supplies,Catering Food & Beverages ,16.12.2021,16.01.2022,GPC12210000199,63.06
Stockport MBC,Services to People,Adult Social Care,ALDI 84 773,Catering Supplies,Catering Food & Beverages ,08.12.2021,16.01.2022,GPC12210000200,17.96
Stockport MBC,Corporate and Support Services,Planning Services,JD SPORTS INTERNET,Furniture and Equipment,Furniture & Soft Furnishings  ,12.12.2021,16.01.2022,GPC12210000201,-58.99
Stockport MBC,Services to People,Childrens & Educational Services,WM MORRISONS STORE,Catering Supplies,Catering Food & Beverages ,10.12.2021,16.01.2022,GPC12210000202,3.00
Stockport MBC,Services to People,Childrens & Educational Services,WM MORRISONS STORE,Catering Supplies,Catering Food & Beverages ,06.12.2021,16.01.2022,GPC12210000203,5.24
Stockport MBC,Services to People,Childrens & Educational Services,WM MORRISONS STORE,Catering Supplies,Catering Food & Beverages ,06.12.2021,16.01.2022,GPC12210000204,4.30
Stockport MBC,Services to People,Childrens & Educational Services,ARGOS LTD,Furniture and Equipment,Furniture & Soft Furnishings  ,22.12.2021,16.01.2022,GPC12210000205,214.13
Stockport MBC,Services to People,Childrens & Educational Services,HOLIDAY INNS,Care Payments,Social Community Care Supplies & Services  ,16.12.2021,16.01.2022,GPC12210000206,71.00
Stockport MBC,Services to People,Childrens & Educational Services,ARGOS LTD,Furniture and Equipment,Environmental Services Technical Equipment ,30.11.2021,16.01.2022,GPC12210000207,29.99
Stockport MBC,Services to People,Childrens & Educational Services,ZOOM.US 888-799-9666,Fees and Charges,"Works - Construction, Repair & Maintenance  ",26.12.2021,16.01.2022,GPC12210000208,14.39
Stockport MBC,Services to People,Childrens & Educational Services,ASDA STORE 4422,Catering Supplies,Catering Food & Beverages ,15.12.2021,16.01.2022,GPC12210000209,23.92
Stockport MBC,Services to People,Childrens & Educational Services,DOMINO S PIZZA,Catering Supplies,Catering Food & Beverages ,09.12.2021,16.01.2022,GPC12210000210,12.98
Stockport MBC,Services to People,Childrens & Educational Services,POST OFFICE COUNTER,Office Expenses,Mail Services�  ,10.12.2021,16.01.2022,GPC12210000211,7.65
Stockport MBC,Services to People,Childrens & Educational Services,DOMINO S PIZZA,Catering Supplies,Catering Food & Beverages ,08.12.2021,16.01.2022,GPC12210000212,19.99
Stockport MBC,Services to People,Childrens & Educational Services,ASDA STORE 4422,Catering Supplies,Catering Food & Beverages ,02.12.2021,16.01.2022,GPC12210000213,6.00
Stockport MBC,Services to People,Childrens & Educational Services,STOCKPORT COUNCIL PARK,Fees and Charges,Education  ,20.12.2021,16.01.2022,GPC12210000214,1.80
Stockport MBC,Services to People,Childrens & Educational Services,STOCKPORT COUNCIL PARK,Fees and Charges,Education  ,16.12.2021,16.01.2022,GPC12210000215,1.80
Stockport MBC,Services to People,Childrens & Educational Services,STOCKPORT COUNCIL PARK,Fees and Charges,Education  ,15.12.2021,16.01.2022,GPC12210000216,1.80
Stockport MBC,Services to People,Childrens & Educational Services,STOCKPORT COUNCIL PARK,Fees and Charges,Education  ,15.12.2021,16.01.2022,GPC12210000217,1.80
Stockport MBC,Services to People,Childrens & Educational Services,STOCKPORT COUNCIL PARK,Fees and Charges,Education  ,14.12.2021,16.01.2022,GPC12210000218,1.80
Stockport MBC,Corporate and Support Services,Cultural & Related Services,AMZNMKTPLACE,Publicity and Promotion,Arts & Leisure Services  ,16.12.2021,16.01.2022,GPC12210000219,7.87
Stockport MBC,Corporate and Support Services,Cultural & Related Services,SAINSBURY'S S/MKTS,Catering Supplies,Catering Food & Beverages ,14.12.2021,16.01.2022,GPC12210000220,9.55
Stockport MBC,Corporate and Support Services,Cultural & Related Services,SAINSBURY'S S/MKTS,Catering Supplies,Catering Food & Beverages ,11.12.2021,16.01.2022,GPC12210000221,4.20
Stockport MBC,Corporate and Support Services,Cultural & Related Services,THE RANGE,Publicity and Promotion,Arts & Leisure Services  ,09.12.2021,16.01.2022,GPC12210000222,7.99
Stockport MBC,Corporate and Support Services,Cultural & Related Services,CO-OP GROUP 108689,Catering Supplies,Catering Food & Beverages ,11.12.2021,16.01.2022,GPC12210000223,2.76
Stockport MBC,Corporate and Support Services,Cultural & Related Services,SAINSBURY'S S/MKTS,Catering Supplies,Catering Food & Beverages ,08.12.2021,16.01.2022,GPC12210000224,6.75
Stockport MBC,Corporate and Support Services,Cultural & Related Services,B&M 261 - STOCKPORT,Publicity and Promotion,Arts & Leisure Services  ,03.12.2021,16.01.2022,GPC12210000225,6.10
